[Event "87th Tata Steel Challengers 2025"]
[Site "Wijk aan Zee"]
[Date "2025.01.18"]
[Round "1.2"]
[White "Nguyen, Thai Dai Van"]
[Black "Pijpers, Arthur"]
[Result "1-0"]
[Annotator "TA"]
[ECO "A49"]
[WhiteElo "2668"]
[BlackElo "2474"]
[PlyCount "75"]
[EventDate "2025.01.13"]
[EventType "tourn"]
[EventCountry "NED"]
[SourceTitle "playchess.com"]
[Source "ChessBase"]
[SourceQuality "1"]
[TimeControl "40/6000+30:20/3000+30:900+30"]

{[%evp 9,75,21,30,18,16,14,12,16,28,18,22,8,18,24,22,8,9,0,33,37,36,37,47,16,26,23,15,15,37,55,84,89,84,90,77,50,114,109,148,150,199,181,189,189,225,215,422,436,497,504,483,466,562,548,564,575,630,592,631,638,631,634,638,616,589,570,564,554]} 1. d4 {[%emt 0:00:09]} Nf6 {[%emt 0:00:06]} 2. Nf3 {[%emt 0:00:22]} g6 {[%emt 0:00:05]} 3. g3 {[%emt 0:00:17]} Bg7 {[%emt 0:02:12]} 4. Bg2 {[%emt 0:00:10]} c5 {[%emt 0:00:08]} 5. dxc5 {[%emt 0:00:08]} Qa5+ {[%emt 0:00:25]} 6. c3 {[%emt 0:00:06]} Qxc5 {[%emt 0:01:01]} 7. Nd4 {[%emt 0:00:06]} O-O {[%emt 0:08:56]} 8. e4 {[%emt 0:00:09]} Nc6 {[%emt 0:15:04]} 9. O-O {[%emt 0:00:19]} d6 {[%emt 0:05:13]} 10. h3 {[%emt 0:00:07]} Bd7 {[%emt 0:06:56]} 11. Be3 {[%emt 0:16:13][%cal Od4e6] Black should prevent Ne6!.} Qa5 {[%emt 0:00:06]} 12. Na3 {[%emt 0:00:55]} Rac8 {[%emt 0:08:52]} 13. Qe2 {[%emt 0:10:25]} Qa6 {[%emt 0:22:12]} 14. Qxa6 {[%emt 0:08:34]} bxa6 {[%emt 0:00:02]} 15. Rfd1 {[%emt 0:00:24]} Rc7 {[%emt 0:02:47]} 16. Ne2 {[%emt 0:08:56]} Rb8 {[%emt 0:00:37]} 17. Rab1 {[%emt 0:02:06]} a5 {[%emt 0:03:08]} 18. b3 {[%emt 0:03:27]} Nd8 {[%emt 0:08:24]} 19. c4 {[%emt 0:02:31]} Bc6 {[%emt 0:05:00]} 20. Nc3 {[%emt 0:03:01]} Rcb7 {[%emt 0:01:35]} 21. Nab5 {[%emt 0:08:03][%cal Ba3b5,Bb5a7,Ba7c6][%mdl 32]} Nd7 {[%emt 0:01:16]} 22. Nd5 {[%emt 0:15:58] White has more active pieces.} (22. Bxa7 Rxa7 23. Nxa7 Bxc3 24. Nxc6 Nxc6 $17) (22. Rbc1 {feels hotter.} Nc5 23. e5 Bxg2 24. exd6 Bf3 25. dxe7 Nde6 26. Rd8+) 22... Bxd5 {[%emt 0:01:23]} ({Black should play} 22... Nc5 $14) 23. exd5 $16 {[%emt 0:00:16]} (23. Rxd5 $6 a6 24. Na3 Nc6 $14 (24... a4 25. c5 $11)) 23... a6 {[%emt 0:00:32]} 24. Na7 {[%emt 0:09:25]} Ne5 {[%emt 0:00:21]} ({Reject} 24... Ra8 25. Nc6 $18) (24... Nb6 $16 {was worth a try.}) 25. Rbc1 $18 {[%emt 0:01:33]} a4 {[%emt 0:01:04]} 26. bxa4 {[%emt 0:03:07][%cal Bb3a4,Ba4a5][%mdl 32]} Rc7 {[%emt 0:01:22] [#]} 27. a5 $1 {[%emt 0:02:03]} Rxc4 $2 {[%emt 0:02:29]} (27... Ra8 28. c5 Rcxa7 (28... Raxa7 $2 {is the wrong capture.} 29. c6 $18)) 28. Nc6 {[%emt 0:03:18]} Ndxc6 {[%emt 0:01:58]} 29. dxc6 {[%emt 0:00:17]} Rc8 {[%emt 0:00:51]} 30. Bb6 {[%emt 0:01:40] aiming for c7. This pair of bishops is nice.} e6 {[%emt 0:04:20]} 31. c7 {[%emt 0:01:06]} d5 {[%emt 0:01:08][%cal Bd6d5,Bd5c4][%mdl 32]} 32. Bf1 {[%emt 0:00:21]} Rxc1 {[%emt 0:00:29]} 33. Rxc1 {[%emt 0:00:04]} Nc4 {[%emt 0:00:04]} 34. Bxc4 {[%emt 0:00:05]} dxc4 {[%emt 0:00:04]} 35. Rd1 {[%emt 0:00:14] Rd8+ would kill now.} Bf6 {[%emt 0:00:42]} 36. Rd8+ {[%emt 0:00:16]} Bxd8 {[%emt 0:00:06]} 37. cxd8=Q+ {[%emt 0:00:09]} Rxd8 {[%emt 0:00:01]} 38. Bxd8 {[%emt 0:00:09]} 1-0

[Event "87th Tata Steel Challengers 2025"]
[Site "Wijk aan Zee"]
[Date "2025.01.21"]
[Round "4.4"]
[White "Nguyen, Thai Dai Van"]
[Black "Suleymanli, Aydin"]
[Result "1/2-1/2"]
[Annotator "TA"]
[ECO "C77"]
[WhiteElo "2668"]
[BlackElo "2623"]
[PlyCount "61"]
[EventDate "2025.01.13"]
[EventType "tourn"]
[EventCountry "NED"]
[SourceTitle "playchess.com"]
[Source "ChessBase"]
[SourceQuality "1"]
[TimeControl "40/6000+30:20/3000+30:900+30"]

{[%evp 16,61,32,20,24,18,24,24,26,35,44,35,39,56,49,43,43,41,74,32,26,10,11,12,15,7,17,20,14,10,19,0,0,0,0,-18,-12,-12,-18,-27,-17,-11,-6,-6,-8,-8,-9,-7]} 1. e4 {[%emt 0:00:29]} e5 {[%emt 0:00:27]} 2. Nf3 {[%emt 0:00:07]} Nc6 {[%emt 0:00:04]} 3. Bb5 {[%emt 0:00:07]} a6 {[%emt 0:00:12]} 4. Ba4 {[%emt 0:00:12]} Nf6 {[%emt 0:00:11]} 5. d3 {[%emt 0:00:10]} d6 {[%emt 0:02:26]} 6. c3 {[%emt 0:00:39]} g6 {[%emt 0:00:13]} 7. O-O {[%emt 0:00:07]} Bg7 {[%emt 0:00:32]} 8. Re1 {[%emt 0:01:11]} O-O {[%emt 0:00:21]} 9. h3 {[%emt 0:00:04]} b5 {[%emt 0:01:03]} 10. Bc2 {[%emt 0:02:02]} d5 {[%emt 0:00:59]} 11. Be3 {[%emt 0:08:19]} Re8 {[%emt 0:13:25]} 12. Nbd2 {[%emt 0:00:46]} dxe4 {[%emt 0:07:11]} 13. dxe4 {[%emt 0:03:02]} Nh5 {[%emt 0:00:09]} 14. a4 {[%emt 0:01:35] And now axb5 would win.} Rb8 {[%emt 0:02:38]} 15. axb5 {[%emt 0:03:37]} axb5 {[%emt 0:01:11]} 16. Nb3 {[%emt 0:01:19]} Qf6 {[%emt 0:04:33]} 17. Bg5 {[%emt 0:02:56]} Qd6 {[%emt 0:03:00]} 18. Qc1 {[%emt 0:22:19]} Nf4 {[%emt 0:04:18]} 19. Qe3 {[%emt 0:00:27]} Ne6 {[%emt 0:06:50]} 20. Bh6 {[%emt 0:00:06]} (20. Red1 $5 Qf8 $8 21. Bh4 $11) 20... b4 {[%emt 0:06:37]} 21. Bxg7 {[%emt 0:01:45]} Kxg7 {[%emt 0:00:25]} 22. Red1 {[%emt 0:20:04]} Qe7 {[%emt 0:00:08]} 23. Nc1 {[%emt 0:08:22]} bxc3 {[%emt 0:06:18]} 24. bxc3 {[%emt 0:00:07]} Nf4 {[%emt 0:00:45]} 25. Ba4 {[%emt 0:08:35]} Rd8 {[%emt 0:02:27]} 26. Nd3 {[%emt 0:08:21]} Nxd3 {[%emt 0:01:59]} 27. Rxd3 {[%emt 0:00:04]} Rxd3 {[%emt 0:01:52]} 28. Qxd3 {[%emt 0:00:02]} Ra8 {[%emt 0:03:54]} 29. Qd1 {[%emt 0:00:07]} Qc5 {[%emt 0:01:20]} 30. Bxc6 {[%emt 0:01:33]} Rxa1 {[%emt 0:00:25]} 31. Qxa1 {[%emt 0:00:25]} 1/2-1/2

[Event "87th Tata Steel Challengers 2025"]
[Site "Wijk aan Zee"]
[Date "2025.01.24"]
[Round "6.4"]
[White "Nguyen, Thai Dai Van"]
[Black "L'Ami, Erwin"]
[Result "1/2-1/2"]
[Annotator "TA"]
[ECO "B90"]
[WhiteElo "2668"]
[BlackElo "2614"]
[PlyCount "74"]
[EventDate "2025.01.13"]
[EventType "tourn"]
[EventCountry "NED"]
[SourceTitle "playchess.com"]
[Source "ChessBase"]
[SourceQuality "1"]
[TimeControl "40/6000+30:20/3000+30:900+30"]

{[%evp 14,74,8,7,0,12,18,16,10,10,10,11,14,2,2,0,0,8,0,0,22,0,10,0,47,35,93,84,86,77,81,83,87,0,0,0,0,0,0,-20,-12,-18,-13,-37,-30,-22,-23,-60,-66,-70,-72,-77,-79,-65,0,0,0,0,0,0,0,-7,0]} 1. e4 {[%emt 0:00:09]} c5 {[%emt 0:00:21]} 2. Nf3 {[%emt 0:00:07]} d6 {[%emt 0:00:12]} 3. d4 {[%emt 0:00:09]} cxd4 {[%emt 0:00:11]} 4. Nxd4 {[%emt 0:00:04]} Nf6 {[%emt 0:00:13]} 5. Nc3 {[%emt 0:00:05]} a6 {[%emt 0:00:12]} 6. a4 {[%emt 0:00:55]} e5 {[%emt 0:02:50]} 7. Nf3 {[%emt 0:00:06]} Be7 {[%emt 0:01:24]} 8. Bg5 {[%emt 0:00:11]} Be6 {[%emt 0:01:40] B90: Sicilian Najdorf: Unusual White 6th moves, 6 Be3 Ng4 and 6 Be3 e5.} 9. Bxf6 {[%emt 0:00:25]} Bxf6 {[%emt 0:00:09]} 10. Nd5 {[%emt 0:00:05] Prevents Qb6} Nd7 {[%emt 0:02:03]} 11. Bc4 {[%emt 0:00:06]} Rc8 {[%emt 0:04:38]} 12. Qe2 {[%emt 0:00:58]} Nb6 {[%emt 0:07:21]} 13. Nxf6+ {[%emt 0:00:40]} Qxf6 {[%emt 0:00:54]} 14. Bxe6 {[%emt 0:00:13]} Qxe6 {[%emt 0:01:19]} 15. O-O {[%emt 0:01:22]} O-O {[%emt 0:05:03]} 16. Rfd1 {[%emt 0:01:33]} Rc6 {[%emt 0:05:55]} 17. b3 {[%emt 0:05:37]} Nd7 {[%emt 0:09:50]} 18. Rd2 {[%emt 0:07:43] Not much happening anymore} Nf6 $146 {[%emt 0:07:26]} (18... Rfc8 $11) (18... Rfc8 19. Rad1 Qe7 20. g3 Nc5 21. Rd5 b5 22. axb5 axb5 23. h4 h6 24. h5 Qf6 {½-½ Ivanchuk,V (2611)-Donchenko,A (2633) Sunway Formentera op 3rd 2024 (8)}) 19. Rad1 $14 {[%emt 0:05:49]} Qg4 {[%emt 0:12:07]} (19... Rfc8 $14) 20. Rxd6 $16 {[%emt 0:27:12]} Rxd6 {[%emt 0:01:12]} 21. Rxd6 {[%emt 0:00:02]} Nxe4 {[%emt 0:00:21]} 22. h3 {[%emt 0:11:06]} Qf4 {[%emt 0:03:46]} 23. g3 {[%emt 0:00:51]} ({Better is} 23. Rd7 $16) 23... Qc1+ $11 {[%emt 0:01:11]} 24. Qd1 {[%emt 0:00:06]} Qxd1+ {[%emt 0:00:15]} 25. Rxd1 {[%emt 0:00:07][%mdl 4096] Endgame KRN-KRN} f6 {[%emt 0:00:42]} 26. a5 {[%emt 0:09:28]} Rc8 {[%emt 0:07:59]} 27. c4 {[%emt 0:03:50]} Rc7 {[%emt 0:05:49]} 28. Kf1 {[%emt 0:17:11]} Kf7 {[%emt 0:01:44]} 29. Rc1 {[%emt 0:00:26]} Nc5 {[%emt 0:09:45]} 30. Rb1 {[%emt 0:03:55]} Nd3 {[%emt 0:04:09]} 31. Nd2 {[%emt 0:06:57]} Nb4 {[%emt 0:00:45]} 32. Ne4 {[%emt 0:01:05]} f5 {[%emt 0:04:14]} 33. Ng5+ {[%emt 0:00:36]} Kg6 {[%emt 0:03:21]} (33... Ke7 $1 $15) 34. Ne6 {[%emt 0:03:15] The position is equal.} Re7 {[%emt 0:01:01]} 35. Nc5 {[%emt 0:01:02]} Rc7 {[%emt 0:00:42]} 36. Ne6 {[%emt 0:00:06]} Re7 {[%emt 0:02:50]} 37. Nc5 {[%emt 0:00:07]} Rc7 {[%emt 0:00:05] Weighted Error Value: White=0.10 (very precise) /Black=0.07 (flawless)   Mistake:       	White=1     	Black=3      Inaccurate:     	White=1     	---        OK:         	White=16    	Black=14     Best:        	White=2     	Black=1} 1/2-1/2